fUST/lending_fUST_20260201
["ID","MTS","AMOUNT","RATE_DAILY","PERIOD"]
[404158873,1769886653414,-199.0,0.000754,120]
[404158874,1769886653425,-233.06255167,0.00075421,2]
[404158875,1769886653436,-199.0,0.000758,120]
[404158876,1769886653447,-150.0,0.00075852,30]
[404158877,1769886653458,-199.0,0.000762,120]
[404158878,1769886653468,-199.0,0.000766,120]
[404158879,1769886653478,-231.0,0.00077,120]
[404158880,1769886653487,-164.0,0.00077,120]
[404158881,1769886653496,-1781.680194,0.0008,120]
[404158882,1769886653506,-193.0,0.0008,120]
[404158883,1769886653516,-155.88,0.0008,14]
[404158884,1769886653526,-150.0,0.00086395,30]
[404158885,1769886653536,-403.205,0.00086591,120]
[404158886,1769886653546,-730.05,0.00089,60]
[404158887,1769886653558,-166.79,0.00093,2]
[404158888,1769886653569,-150.0,0.00096498,30]
[404158889,1769886653579,-423.82,0.00099839,120]
[404158890,1769886653589,-150.0,0.00106821,30]
[404158891,1769886653598,-403.205,0.0011,120]
[404158892,1769886653608,-162.8,0.00117144,30]
[404158893,1769886653618,-186.06,0.00127468,30]
[404158894,1769886653628,-209.32,0.00137791,30]
[404158895,1769886653638,-232.58,0.00148114,30]
[404158896,1769886653648,-2151.0,0.00189612,120]
[404158897,1769886653658,-630.0,0.00189612,120]
[404158898,1769886653667,-150.0,0.0019141,120]
[404158899,1769886653677,-150.0,0.0019141,120]
[404158900,1769886653820,-2151.0,0.00192612,120]
[404158901,1769886653830,-630.0,0.00192612,120]
[404158902,1769886653839,-150.0,0.0019441,120]
[404158903,1769886653849,-2151.0,0.00195612,120]
[404158904,1769886653858,-630.0,0.00195612,120]
[404158905,1769886653868,-150.0,0.0019741,120]
[404158906,1769886653878,-2151.0,0.00198612,120]
[404158907,1769886653888,-630.0,0.00198612,120]
[404158908,1769886653897,-3237.79994856,0.0019999,60]
[404158909,1769886653907,-50000.0,0.002,120]
[404158910,1769886653916,-150.0,0.0020041,120]
[404158911,1769886653926,-2151.0,0.00201612,120]
[404158912,1769886653935,-630.0,0.00201612,120]
[404158913,1769886653944,-2151.0,0.00204612,120]
[404158914,1769886653954,-630.0,0.00204612,120]
[404158915,1769886653963,-2144.0,0.00207612,120]
[404158916,1769886653976,-630.0,0.00207612,120]
[404158917,1769886653985,-234.43920214,0.0021,120]
[404158918,1769886653995,-246.48334857,0.0021,120]
[404158919,1769886654004,-630.0,0.00210612,120]
[404158920,1769886654014,-234.43920214,0.0022,120]
[404158921,1769886654024,-246.48334857,0.0022,120]
[404158922,1769886654034,-161.75457638,0.00222222,120]
[404158923,1769886654043,-234.43920214,0.0023,120]
[404158924,1769886654056,-246.48334857,0.0023,120]
[404158925,1769886654065,-3237.79994856,0.0023999,60]
[404158926,1769886654075,-5443.2,0.0024,30]
[404158927,1769886654085,-234.43920214,0.0024,120]
[404158928,1769886654094,-246.48334857,0.0024,120]
[404158929,1769886654104,-161.75457638,0.00244444,120]
[404158930,1769886654114,-234.43920214,0.0025,120]
[404158931,1769886654123,-246.48334857,0.0025,120]
[404158932,1769886654133,-710.0,0.00259735,31]
[404158933,1769886654142,-234.43920214,0.0026,120]
[404158934,1769886654151,-246.48334857,0.0026,120]
[404158935,1769886654160,-161.75457638,0.00266667,120]
[404158936,1769886654170,-234.43920214,0.0027,120]
[404158937,1769886654179,-246.48334857,0.0027,120]
[404158938,1769886654188,-151.0,0.00273973,120]
[404158939,1769886654198,-151.0,0.00273973,120]
[404158940,1769886654207,-151.0,0.00273973,120]
[404158941,1769886654217,-151.0,0.00273973,120]
[404158942,1769886654226,-151.0,0.00273973,120]
[404158943,1769886654236,-177.012067,0.00273973,120]
[404158944,1769886654245,-151.0,0.00273973,60]
[404158945,1769886654254,-182.864764,0.00273973,60]
[404158946,1769886654263,-151.0,0.00273973,120]
[404158947,1769886654272,-151.0,0.00273973,120]
[404158948,1769886654281,-151.0,0.00273973,120]
[404158949,1769886654291,-151.0,0.00273973,120]
[404158950,1769886654303,-151.0,0.00273973,120]
[404158951,1769886654312,-151.0,0.00273973,120]
[404158952,1769886654321,-151.0,0.00273973,120]
[404158953,1769886654330,-151.0,0.00273973,120]
[404158954,1769886654339,-151.0,0.00273973,120]
[404158955,1769886654349,-151.0,0.00273973,120]
[404158956,1769886654359,-151.0,0.00273973,120]
[404158957,1769886654369,-151.0,0.00273973,120]
[404158958,1769886654382,-184.711374,0.00273973,120]
[404158959,1769886654392,-500.0,0.00273973,120]
[404158960,1769886654402,-500.0,0.00273973,120]
[404158961,1769886654411,-500.0,0.00273973,120]
[404158962,1769886654421,-500.0,0.00273973,120]
[404158963,1769886654431,-500.0,0.00273973,120]
[404158964,1769886654441,-500.0,0.00273973,120]
[404158965,1769886654450,-500.0,0.00273973,120]
[404158966,1769886654459,-500.0,0.00273973,120]
[404158967,1769886654469,-500.0,0.00273973,120]
[404158968,1769886654478,-500.0,0.00273973,120]
[404158969,1769886654488,-500.0,0.00273973,120]
[404158970,1769886654497,-500.0,0.00273973,120]
[404158971,1769886654507,-500.0,0.00273973,120]
[404158972,1769886654516,-500.0,0.00273973,120]
[404158973,1769886654525,-500.0,0.00273973,120]
[404158974,1769886654535,-500.0,0.00273973,120]
[404158975,1769886654544,-500.0,0.00273973,120]
[404158976,1769886654554,-500.0,0.00273973,120]
[404158977,1769886654563,-500.0,0.00273973,120]
[404158978,1769886654573,-500.0,0.00273973,120]
[404158979,1769886654582,-151.010726,0.00273973,7]
[404158980,1769886654591,-151.0,0.00273973,120]
[404158981,1769886654600,-151.0,0.00273973,120]
[404158982,1769886654610,-151.0,0.00273973,120]
[404158983,1769886654619,-151.0,0.00273973,120]
[404158984,1769886654628,-178.305353,0.00273973,120]
[404158985,1769886654637,-151.015349,0.00273973,2]
[404158986,1769886654647,-151.0,0.00273973,120]
[404158987,1769886654656,-238.641739,0.00273973,120]
[404158988,1769886654665,-151.0,0.00273973,120]
[404158989,1769886654674,-151.0,0.00273973,120]
[404158990,1769886654683,-151.0,0.00273973,120]
[404158991,1769886654692,-151.0,0.00273973,120]
[404158992,1769886654701,-151.0,0.00273973,120]
[404158993,1769886654710,-151.0,0.00273973,120]
[404158994,1769886654720,-151.0,0.00273973,120]
[404158995,1769886654729,-151.0,0.00273973,120]
[404158996,1769886654738,-151.0,0.00273973,120]
[404158997,1769886654748,-151.0,0.00273973,120]
[404158998,1769886654758,-151.0,0.00273973,120]
[404158999,1769886654767,-189.489535,0.00273973,120]
[404159000,1769886654778,-151.0,0.00273973,120]
[404159001,1769886654788,-151.0,0.00273973,120]
[404159002,1769886654797,-151.0,0.00273973,120]
[404159003,1769886654808,-271.81383713,0.00273973,120]
[404159004,1769886654818,-234.43920214,0.0028,120]
[404159005,1769886654827,-246.48334857,0.0028,120]
[404159006,1769886654837,-200.0,0.00285711,120]
[404159007,1769886654847,-161.75457638,0.00288889,120]
[404159008,1769886654857,-157.34,0.0029,120]
[404159009,1769886654866,-234.43920214,0.0029,120]
[404159010,1769886654875,-246.48334857,0.0029,120]
[404159011,1769886654885,-50000.0,0.003,120]
[404159012,1769886654894,-155.88,0.003,120]
[404159013,1769886654904,-166.79,0.003,2]
[404159014,1769886654914,-234.43920214,0.003,120]
[404159015,1769886654924,-246.48334857,0.003,120]
[404159016,1769886654933,-193.0,0.003014,120]
[404159017,1769886654942,-234.43920214,0.0031,120]
[404159018,1769886654952,-246.48334857,0.0031,120]
[404159019,1769886654962,-161.75457638,0.00311111,120]
[404159020,1769886654972,-234.43920214,0.0032,120]
[404159021,1769886654983,-246.48334857,0.0032,120]
[404159022,1769886654992,-234.43920214,0.0033,120]
[404159023,1769886655002,-246.48334857,0.0033,120]
[404159024,1769886655011,-161.75457638,0.00333333,120]
[404159025,1769886655021,-234.43920214,0.0034,120]
[404159026,1769886655032,-246.48334857,0.0034,120]
[404159027,1769886655042,-234.43920214,0.0035,120]
[404159028,1769886655054,-246.48334857,0.0035,120]
[404159029,1769886655063,-161.75457638,0.00355556,120]
[404159030,1769886655073,-234.43920214,0.0036,120]
[404159031,1769886655083,-246.48334857,0.0036,120]
[404159032,1769886655092,-234.43920214,0.0037,120]
[404159033,1769886655102,-246.48334857,0.0037,120]
[404159034,1769886655112,-161.75457638,0.00377778,120]
[404159035,1769886655122,-2000.0,0.00378057,120]
[404159036,1769886655132,-234.43920214,0.0038,120]
[404159037,1769886655142,-246.48334857,0.0038,120]
[404159038,1769886655152,-234.43920214,0.0039,120]
[404159039,1769886655161,-246.48334857,0.0039,120]
[404159040,1769886655171,-436.67,0.0039989,120]
[404159041,1769886655187,-50000.0,0.004,120]
[404159042,1769886655202,-5443.2,0.004,30]
[404159043,1769886655212,-161.75,0.004,120]
[404159044,1769886655223,-234.43,0.004,120]
[404159045,1769886655234,-246.48,0.004,120]
[404159046,1769886655244,-50000.0,0.005,120]
[404159047,1769886655253,-1036.2422609,0.00512451,120]
[404159048,1769886655262,-193.0,0.005228,120]
[404159049,1769886655273,-500.0,0.00547945,120]
[404159050,1769886655283,-500.0,0.00547945,120]
[404159051,1769886655292,-500.0,0.00547945,120]
[404159052,1769886655301,-500.0,0.00547945,120]
[404159053,1769886655313,-500.0,0.00547945,120]
[404159054,1769886655322,-500.0,0.00547945,120]
[404159055,1769886655332,-500.0,0.00547945,120]
[404159056,1769886655341,-500.0,0.00547945,120]
[404159057,1769886655350,-500.0,0.00547945,120]
[404159058,1769886655359,-500.0,0.00547945,120]
[404159059,1769886655368,-500.0,0.00547945,120]
[404159060,1769886655378,-500.0,0.00547945,120]
[404159061,1769886655389,-500.0,0.00547945,120]
[404159062,1769886655398,-500.0,0.00547945,120]
[404159063,1769886655408,-500.0,0.00547945,120]
[404159064,1769886655418,-500.0,0.00547945,120]
[404159065,1769886655428,-500.0,0.00547945,120]
[404159066,1769886655438,-500.0,0.00547945,120]
[404159067,1769886655447,-500.0,0.00547945,120]
[404159068,1769886655457,-500.00000034,0.00547945,120]
[404159069,1769886655469,-6484.5,0.006,120]
[404159070,1769886655479,-10000.0,0.00654015,120]
[404159071,1769886655489,-3664.12774786,0.00693,120]
[404159072,1769886655499,-20000.0,0.00717,120]
[404159073,1769886655509,-25000.0,0.00737,120]
[404159074,1769886655519,-193.0,0.007441,120]
[404159075,1769886655528,-160684.46121324,0.007488,120]
[404159076,1769886655539,-10500.0,0.0075,120]
[404159077,1769886655549,-5443.2,0.0075,30]
[404159078,1769886655560,-10000.0,0.00795709,120]
[404159079,1769886655570,-371.07739438,0.008,120]
[404159080,1769886655579,-177.36267086,0.008,120]
[404159081,1769886655588,-391.38159062,0.008,7]
[404159082,1769886655598,-500.0,0.008,120]
[404159083,1769886655609,-500.0,0.008,120]
[404159084,1769886655618,-266.55890525,0.008,120]
[404159085,1769886655628,-503.34937319,0.008,120]
[404159086,1769886655638,-193.0,0.009655,120]
[404159087,1769886655650,-10000.0,0.00968102,120]
[404159088,1769886655660,-200.0,0.00990793,120]
[404159089,1769886655670,-1036.2422609,0.01008267,120]
[404159090,1769886655680,-10000.0,0.01177845,120]
[404159091,1769886655690,-193.0,0.011869,120]
[404159092,1769886655699,-933.36530738,0.01284107,120]
[404159093,1769886655708,-193.0,0.014083,120]
[404159094,1769886655718,-10000.0,0.01433028,120]
[404159095,1769886655727,-5443.2,0.015,30]
[404159096,1769886655736,-1036.2422609,0.01504084,120]
[404159097,1769886655746,-193.0,0.016297,120]
[404159098,1769886655756,-10000.0,0.01743498,120]
[404159099,1769886655766,-193.0,0.01851,120]
[404159100,1769886655776,-100000.0,0.0198,120]
[404159101,1769886655786,-1036.2422609,0.019999,120]
[404159102,1769886655797,-400000.0,0.02,120]
[404159103,1769886655809,-1099.76343502,0.020723,30]
[404159104,1769886655819,-193.0,0.020724,120]
[404159105,1769886655828,-10000.0,0.0208,120]
[404159106,1769886655837,-10000.0,0.02121232,120]
[404159107,1769886655847,-10000.0,0.0218,120]
[404159108,1769886655857,-153.5789033,0.022474,120]
[404159109,1769886655867,-10000.0,0.0228,120]
[404159110,1769886655877,-193.0,0.022938,120]
[404159111,1769886655887,-10000.0,0.0238,120]
[404159112,1769886655898,-1099.76343495,0.02397589,30]
[404159113,1769886655908,-25000.0,0.0245,120]
[404159114,1769886655918,-160.0,0.0245232,3]
[404159115,1769886655928,-10000.0,0.0248,120]
[404159116,1769886655939,-193.0,0.025152,120]
[404159117,1769886655951,-933.36530738,0.02522705,120]
[404159118,1769886655962,-10000.0,0.0258,120]
[404159119,1769886655974,-10000.0,0.02580803,120]
[404159120,1769886655987,-10000.0,0.0268,120]
[404159121,1769886655998,-1099.76343495,0.02722878,30]
[404159122,1769886656008,-193.0,0.027366,120]
[404159123,1769886656018,-10000.0,0.02778,120]
[404159124,1769886656029,-30000.0,0.0278,120]
[404159125,1769886656038,-200.0,0.0286759,120]
[404159126,1769886656050,-89507.1857164,0.0288,120]
[404159127,1769886656065,-160.0,0.0288495,4]
[404159128,1769886656075,-160.0,0.0288495,5]
[404159129,1769886656084,-10000.0,0.028985,120]
[404159130,1769886656093,-10000.0,0.029345,120]
[404159131,1769886656103,-193.0,0.029579,120]
[404159132,1769886656112,-4691.61101149,0.029619,84]
[404159133,1769886656124,-155.0,0.03,120]
[404159134,1769886656133,-7006.386,0.03,73]
[404159135,1769886656143,-274362.1742712,0.03,120]
[404159136,1769886656152,-200.0,0.03030843,120]
[404159137,1769886656162,-10000.0,0.030435,120]
[404159138,1769886656172,-1099.76343495,0.03048167,30]
[404159139,1769886656181,-6902.352542,0.03113977,83]
[404159140,1769886656191,-10000.0,0.031345,120]
[404159141,1769886656200,-10000.0,0.03139942,120]
[404159142,1769886656209,-193.0,0.031793,120]
[404159143,1769886656219,-6217.94655,0.032,103]
[404159144,1769886656230,-200.0,0.03218075,120]
[404159145,1769886656239,-7714.0,0.03258,106]
[404159146,1769886656248,-10000.0,0.032664,120]
[404159147,1769886656257,-7551.65,0.03321,104]
[404159148,1769886656267,-155.0,0.03333,120]
[404159149,1769886656276,-10000.0,0.03365879,120]
[404159150,1769886656285,-1099.76343495,0.03373456,30]
[404159151,1769886656295,-193.0,0.034007,120]
[404159152,1769886656307,-6942.23,0.034266,117]
[404159153,1769886656317,-10000.0,0.0346346,120]
[404159154,1769886656327,-10000.0,0.034999,120]
[404159155,1769886656339,-6632.0,0.035,108]
[404159156,1769886656348,-10000.0,0.0356346,120]
[404159157,1769886656358,-193.0,0.036221,120]
[404159158,1769886656367,-6239.907118,0.036522,96]
[404159159,1769886656377,-10000.0,0.0369345,120]
[404159160,1769886656387,-1099.76343495,0.03698744,30]
[404159161,1769886656398,-5624.5,0.0372,97]
[404159162,1769886656407,-933.36530738,0.03761302,120]
[404159163,1769886656417,-149999.999999,0.03778,120]
[404159164,1769886656427,-20000.0,0.03820219,120]
[404159165,1769886656437,-10000.0,0.03834535,120]
[404159166,1769886656446,-193.0,0.038434,120]
[404159167,1769886656456,-10000.0,0.0389345,120]
[404159168,1769886656466,-3225.02848088,0.039,81]
[404159169,1769886656476,-152.0,0.0393,120]
[404159170,1769886656486,-11185.34246,0.0394213,73]
[404159171,1769886656495,-10000.0,0.039989,120]
[404159172,1769886656505,-155.0,0.04,120]
[404159173,1769886656514,-22541.80802024,0.04,120]
[404159174,1769886656524,-1099.76343495,0.04024033,30]
[404159175,1769886656534,-6785.2617,0.0404,61]
[404159176,1769886656543,-193.0,0.040648,120]
[404159177,1769886656555,-10000.0,0.0406877,120]
[404159178,1769886656565,-10000.0,0.04145764,120]
[404159179,1769886656575,-7118.9,0.04245,66]
[404159180,1769886656584,-10000.0,0.04245764,120]
[404159181,1769886656594,-193.0,0.042862,120]
[404159182,1769886656603,-14372.2,0.0432008,80]
[404159183,1769886656612,-1099.76343495,0.04349322,30]
[404159184,1769886656699,-10000.0,0.04386733,120]
[404159185,1769886656718,-155.0,0.04444,120]
[404159186,1769886656727,-10000.0,0.044999,120]
[404159187,1769886656739,-193.0,0.045076,120]
[404159188,1769886656748,-10000.0,0.04534529,120]
[404159189,1769886656757,-12917.736,0.046,99]
[404159190,1769886656767,-10000.0,0.04634534,120]
[404159191,1769886656776,-30000.0,0.04647881,120]
[404159192,1769886656787,-7037.5025,0.04654,110]
[404159193,1769886656796,-1099.76343495,0.04674611,30]
[404159194,1769886656807,-7347.3,0.04704,90]
[404159195,1769886656816,-193.0,0.04729,120]
[404159196,1769886656826,-10000.0,0.04754635,120]
[404159197,1769886656836,-7080.771587,0.04822,86]
[404159198,1769886656846,-10000.0,0.04845635,120]
[404159199,1769886656856,-251518.4137727,0.04888,120]
[404159200,1769886656866,-6941.0,0.049,62]
[404159201,1769886656876,-10000.0,0.04924525,120]
[404159202,1769886656886,-152.0,0.0493,120]
[404159203,1769886656897,-193.0,0.049503,120]
[404159204,1769886656907,-50000.0,0.0498,120]
[404159205,1769886656917,-933.36530738,0.049999,120]
[404159206,1769886656928,-155.0,0.05,120]
[404159207,1769886656938,-243.0,0.05,120]
[404159208,1769886656947,-18933.44847413,0.05,120]
[404159209,1769886656957,-7317.0,0.05,119]
[404159210,1769886656966,-56572.890747,0.05,120]
[404159211,1769886656977,-10000.0,0.05023452,120]
[404159212,1769886656992,-7645.69985,0.051264,106]
[404159213,1769886657002,-10000.0,0.05145645,120]
[404159214,1769886657012,-193.0,0.051717,120]
[404159215,1769886657023,-6586.3003,0.052113,62]
[404159216,1769886657032,-10000.0,0.05286874,120]
[404159217,1769886657043,-10000.0,0.05312431,120]
[404159218,1769886657058,-15310.03134,0.0532,71]
[404159219,1769886657071,-200.0,0.05329181,120]
[404159220,1769886657086,-7547.0,0.05353603,62]
[404159221,1769886657096,-193.0,0.053931,120]
[404159222,1769886657105,-336.0,0.0541579,120]
[404159223,1769886657114,-10000.0,0.05476645,120]
[404159224,1769886657123,-155.0,0.05555,120]
[404159225,1769886657133,-10000.0,0.05576847,120]
[404159226,1769886657142,-193.0,0.056145,120]
[404159227,1769886657151,-10000.0,0.05624524,120]
[404159228,1769886657161,-40000.0,0.05654858,120]
[404159229,1769886657170,-10000.0,0.05742524,120]
[404159230,1769886657179,-155.0,0.05777,120]
[404159231,1769886657188,-631.88560374,0.058,120]
[404159232,1769886657197,-193.0,0.058359,120]
[404159233,1769886657207,-10000.0,0.05897865,120]
[404159234,1769886657217,-2810.87804283,0.059,120]
[404159235,1769886657227,-10000.0,0.0599,120]
[404159236,1769886657235,-155.0,0.06,120]
[404159237,1769886657245,-250.0,0.06,120]
[404159238,1769886657254,-169.0,0.06,120]
[404159239,1769886657264,-635.97347971,0.06,120]
[404159240,1769886657273,-925.27,0.06,120]
[404159241,1769886657282,-193.0,0.060572,120]
[404159242,1769886657291,-10000.0,0.06098542,120]
[404159243,1769886657301,-250.0,0.061,120]
[404159244,1769886657313,-10000.0,0.06114143,120]
[404159245,1769886657323,-302.529,0.0618,120]
[404159246,1769886657332,-475.0,0.0618,120]
[404159247,1769886657342,-475.0,0.0618,120]
[404159248,1769886657353,-475.0,0.0618,120]
[404159249,1769886657363,-475.0,0.0618,120]
[404159250,1769886657374,-164.028,0.0618,120]
[404159251,1769886657385,-250.0,0.062,120]
[404159252,1769886657396,-10000.0,0.06214143,120]
[404159253,1769886657406,-193.0,0.062786,120]
[404159254,1769886657415,-919.421,0.0628,120]
[404159255,1769886657425,-250.0,0.063,120]
[404159256,1769886657433,-10000.0,0.06314143,120]
[404159257,1769886657443,-155.0,0.06333,120]
[404159258,1769886657452,-250.0,0.064,120]
[404159259,1769886657461,-10000.0,0.06434525,120]
[404159260,1769886657471,-40514.441686,0.0649,120]
[404159261,1769886657481,-3929.66019916,0.0649,120]
[404159262,1769886657490,-250.0,0.065,120]
[404159263,1769886657500,-217.0,0.065,120]
[404159264,1769886657509,-10000.0,0.06536573,120]
[404159265,1769886657518,-250.0,0.066,120]
[404159266,1769886657528,-10000.0,0.06623452,120]
[404159267,1769886657538,-200.0,0.06647688,120]
[404159268,1769886657547,-155.0,0.06666,120]
[404159269,1769886657559,-250.0,0.067,120]
[404159270,1769886657571,-10000.0,0.06788576,120]
[404159271,1769886657582,-10000.0,0.06842534,120]
[404159272,1769886657593,-50000.0,0.0688,120]
[404159273,1769886657603,-30397.71764382,0.0688,120]
[404159274,1769886657613,-150000.0,0.0688,120]
[404159275,1769886657623,-240586.00213412,0.0689889,120]
[404159276,1769886657661,-1333.04,0.00032972,10]
[404159277,1769886657671,-161.0,0.00043435,120]
[404159278,1769886657696,-485.7861323,0.049999,30]
[404159279,1769886658008,-544.3625932,0.00016362,2]
[404159280,1769886658018,-2411.4115668,0.00042192,30]
[404159281,1769886658034,-2238.05,0.00031241,2]
[404159282,1769886658044,-130.0998332,0.00042192,30]
[404159283,1769886661263,-4044.40435005,0.00018639,2]
[404159284,1769886661275,-6237.11498842,0.00018639,2]
[404159285,1769886661286,-3116.18135319,0.00018639,2]
[404159286,1769886661299,-3112.0,0.00018639,2]
[404159287,1769886661317,-36589.48722163,0.00018639,2]
[404159288,1769886661329,-453.0,0.00018639,2]
[404159289,1769886661341,-23542.50000037,0.00018639,2]
[404159290,1769886661379,-40394.40000001,0.00018639,2]
[404159291,1769886661390,-57800.50644922,0.00018639,2]
[404159292,1769886661545,3216.00000001,0.0003676,20]
[404159293,1769886661598,1002.5,0.0003676,20]
[404159294,1769886677534,-500.0,0.00013273,2]
[404159295,1769886677665,-500.0,0.00013273,2]
[404159296,1769886677692,-722.96452687,0.00013821,2]
[404159297,1769886677720,-500.0,0.00013821,2]
[404159311,1769886707206,717.5,0.0003676,20]
[404159312,1769886707800,559.0,0.0003676,20]
[404159314,1769886726415,250.74447227,0.00013699,2]
[404159320,1769886750188,317.17558216,0.0003676,120]
[404159321,1769886750573,317.17558216,0.0003676,120]
[404159322,1769886750951,317.17558216,0.0003676,120]
[404159323,1769886783768,500.69178235,0.00013699,2]
[404159324,1769886783926,500.0,0.00013699,2]
[404159325,1769886786288,613.5354249,0.00013699,2]
[404159328,1769886845197,500.0,0.00013699,2]
[404159329,1769886845855,3189.10926674,0.00015339,2]
[404159330,1769886845883,1810.89073326,0.00015339,2]
[404159333,1769886868755,5000.0,0.00015339,2]
[404159334,1769886892186,3189.11926674,0.00015339,2]
[404159335,1769886892210,1810.88073326,0.00015339,2]
[404159336,1769886904535,500.0,0.00013699,2]
[404159337,1769886904588,348.473489,0.00014247,2]
[404159340,1769886914331,5000.0,0.00015339,2]
[404159341,1769886937657,2340.65577774,0.00015339,2]
[404159342,1769886937682,2659.34422226,0.00015339,2]
[404159343,1769886961223,5000.0,0.00015339,2]
[404159346,1769886983534,5000.0,0.00015342,2]
[404159347,1769887005792,5000.0,0.00015342,2]
[404159349,1769887029315,0.01,0.00015342,2]
[404159350,1769887029340,4999.99,0.00015342,2]
[404159352,1769887051327,5000.0,0.00015342,2]
[404159353,1769887073512,0.02,0.00015342,2]
[404159354,1769887073537,4999.98,0.00015342,2]
[404159355,1769887084819,501.93006265,0.00013699,2]
[404159356,1769887084980,500.0,0.00013699,2]
[404159357,1769887085060,1000.0,0.00014247,2]
[404159358,1769887085104,500.0,0.00014795,2]
[404159359,1769887085189,500.0,0.00013273,2]
[404159360,1769887085250,1000.0,0.00013821,2]
[404159361,1769887085284,998.09993735,0.00014368,2]
[404159362,1769887085305,501.90006265,0.00014368,2]
[404159363,1769887085352,500.0,0.00014916,2]
[404159365,1769887097956,5000.0,0.00015342,2]
[404159367,1769887120511,3998.10993735,0.00015342,2]
[404159368,1769887120533,1001.89006265,0.00015342,2]
[404159369,1769887142829,5000.0,0.00015342,2]
[404159372,1769887160463,536.79688552,0.00013699,2]
[404159373,1769887163306,500.0,0.00013699,2]
[404159374,1769887163364,1000.0,0.00014247,2]
[404159375,1769887164603,500.0,0.00013699,2]
[404159376,1769887164659,505.09353231,0.00014247,2]
[404159377,1769887166508,158.98237416,0.00013699,2]
[404159378,1769887166653,444.22626758,0.00013273,2]
[404159379,1769887166881,353.02087778,0.00015342,2]
[404159380,1769887166903,4646.97912222,0.00015342,2]
[404159381,1769887167299,174.00431457,0.00013699,2]
[404159382,1769887168376,500.71917519,0.00013699,2]
[404159383,1769887189942,4678.30738802,0.00015342,2]
[404159384,1769887189963,321.69261198,0.00015342,2]
[404159385,1769887204094,500.0,0.00013699,2]
[404159386,1769887204140,1000.0,0.00014247,2]
[404159387,1769887204199,1000.0,0.00014795,2]
[404159388,1769887205669,641.0,0.00015342,2]
[404159389,1769887206138,500.0,0.00013273,2]
[404159390,1769887206201,167.58945884,0.00013821,2]
[404159391,1769887206455,500.0,0.00013699,2]
[404159392,1769887206482,1001.21829847,0.00014247,2]
[404159393,1769887206570,500.0,0.00013699,2]
[404159394,1769887206619,1000.0,0.00014247,2]
[404159395,1769887206684,1540.77941003,0.00014795,2]
[404159396,1769887206993,500.0,0.00013699,2]
[404159397,1769887210073,500.0,0.00013273,2]
[404159398,1769887210122,327.73022068,0.00013821,2]
[404159399,1769887210147,172.26977932,0.00013821,2]
[404159400,1769887212888,5000.0,0.00015342,2]
[404159402,1769887237385,1067.08840919,0.00015342,2]
[404159404,1769887270511,500.0,0.00013699,2]
[404159405,1769887270564,603.02448987,0.00014247,2]
[404159406,1769887270606,301.32592677,0.00013699,2]
[404159407,1769887271971,500.0,0.00013273,2]